{"text_format":"1","workbook":"xlsx","n_sheets":1,"sheets":["Факт"],"not_rendered":{"charts":0,"images":0,"macros":1,"external_links":0,"defined_names":3,"comments":0,"pivot_tables":0},"unopened":[],"bounds":{"document_bytes":16777216,"sheet_cells":100000,"rows_first":2000,"rows_last":500,"rows_between":2000,"halvings":0,"cell_chars":16384,"cell_head_chars":4096},"cells_cut":0,"cells_raw":0,"read":"whole","date_system":"1900"}

{"sheet":"Факт","index":0,"n_rows":80,"n_cols":34,"rows_kept":80,"cut":false,"hidden":false,"merged":[]}
[null,"Реестр расходных договоров"]
[null,"Форма Факт 2022"]
[]
[]
["№ п/п","Предмет договора","Позиция п/п","Способ закупки","Наименование поставщика/ подрядчика","ИНН","Номер договора","Дата заключения договора/допсоглашения","Срок исполнения договора/допсоглашения","Ответственный. Держатель договора","OPEX / CAPEX","Статья расхода","Статья БДПС","Статья БДПС","Статья формы \nЭкономика / Затраты","Факт 2021","Утвержденный план 2022","Факт / прогноз 2022","Январь","Февраль","Март","Апрель","Май","Июнь","Июль","Август","Сентябрь","Октябрь","Ноябрь","Декабрь","Абс. откл. \n(Факт/прогноз - Утвержденный план)","Отн. откл. \n(Факт/прогноз - Утвержденный план), %","Причина отклонения","Комментарии.\nПодробное пояснение причины отклонения"]
[1,2,3,4,5,6,7,8,9,10,11,12,13,14,15,16,17,18,19,20,21,22,23,24,25,26,27,28,29,30,31,32,33,34]
["А.17","Предмет договора 1",1,"Конкурентная","Поставщик 1","ИНН 1","Номер договора 1","Дата 1","Дата 11","ФИО 1","OPEX","Статья расхода 1","Статья БДПС 1","Расшифровка статьи БДПС 1","Статья Экономика 1",100,0,{"$f":"SUM(S7:AD7)","v":0},null,null,null,null,null,null,null,null,null,null,null,null,{"$f":"R7-Q7","v":0},{"$f":"IF(AND(Q7=R7),0,IF(AND(Q7>0,R7>0),R7/Q7-1,IF(AND(Q7=0,R7>0),1,IF(R7<0,\"Ошибка\",IF(AND(Q7>0,R7=0),-1,0)))))","v":0},null,"Комментарий 1"]
["А.45","Предмет договора 2",1,"Закупка у ЕП","Поставщик 2","ИНН 2","Номер договора 2","Дата 2","Дата 22","ФИО 2","OPEX","Статья расхода 2","Статья БДПС 2","Расшифровка статьи БДПС 2","Статья Экономика 2",500,600,{"$f":"SUM(S8:AD8)","v":650},null,50,null,600,null,null,null,null,null,null,null,null,{"$f":"R8-Q8","v":50},8.3333333333333259E-2,"Увеличение/уменьшение объема","Комментарий 2"]
["Б.23","Предмет договора 3",1,"Внутригрупповая","Поставщик 3","ИНН 3","Номер договора 3","Дата 3","Дата 33","ФИО 3","CAPEX","Статья расхода 3","Статья БДПС 3","Расшифровка статьи БДПС 3","Статья Экономика 3",300,350,350,null,null,null,null,350,null,null,null,null,null,null,null,{"$f":"R9-Q9","v":0},0,null,"Комментарий 3"]
["Б.31","Предмет договора 4",1,"Внутригрупповая","Поставщик 4","ИНН 4","Номер договора 4","Дата 4","Дата 44","ФИО 4","OPEX","Статья расхода 4","Статья БДПС 4","Расшифровка статьи БДПС 4","Статья Экономика 4",200,0,100,null,100,null,null,null,null,null,null,null,null,null,null,{"$f":"R10-Q10","v":100},1,"Некорректное планирование затрат","Комментарий 4"]
["Г.11","Предмет договора 5",1,"Конкурентная","Поставщик 5","ИНН 5","Номер договора 5","Дата 5","Дата 55","ФИО 5","OPEX","Статья расхода 5","Статья БДПС 5","Расшифровка статьи БДПС 5","Статья Экономика 5",150,200,0,null,null,null,null,null,null,null,null,null,null,null,null,-200,-1,"Срыв сроков поставки/ выполнения работ, услуг по вине заказчика","Комментарий 5"]
["Г.12","Предмет договора 6",1,"Внутригрупповая","Поставщик 6","ИНН 6","Номер договора 6","Дата 6","Дата 66","ФИО 6","OPEX","Статья расхода 6","Статья БДПС 6","Расшифровка статьи БДПС 6","Статья Экономика 6",350,300,250,null,null,null,null,null,null,null,250,null,null,null,null,-50,-0.16666666666666663,"Экономия затрат по факту","Комментарий 6"]
["В.128","Предмет договора 7",1,"Закупка у ЕП","Поставщик 7","ИНН 7","Номер договора 7","Дата 7","Дата 77","ФИО 7","OPEX","Статья расхода 7","Статья БДПС 7","Расшифровка статьи БДПС 7","Статья Экономика 7",1400,0,0,null,null,null,null,null,null,null,null,null,null,null,null,{"$f":"R13-Q13","v":0},0,null,"Комментарий 7"]
["В.129","Предмет договора 8",1,"Конкурентная","Поставщик 8","ИНН 8","Номер договора 8","Дата 8","Дата 88","ФИО 8","OPEX","Статья расхода 8","Статья БДПС 8","Расшифровка статьи БДПС 8","Статья Экономика 8",700,1000,1200,null,200,null,null,null,null,null,null,null,1000,null,null,{"$f":"R14-Q14","v":200},0.19999999999999996,"Увеличение/уменьшение цены","Комментарий 8"]
[]
[]
[]
[]
[]
[]
[]
[]
[]
[]
[]
[]
[]
[]
[]
[]
[]
[]
[]
[]
[]
[]
[]
[]
[]
[]
[]
[]
[]
[]
[]
[]
[]
[]
[]
[]
[]
[]
[]
[]
[]
[]
[]
[]
[]
[]
[]
[]
[]
[]
[null,"Внутригрупповая"]
[null,"Закупка у ЕП"]
[null,"Конкурентная"]
[]
[]
[null,"Некорректное планирование затрат"]
[null,"Экономия затрат по факту"]
[null,"Увеличение/уменьшение объема"]
[null,"Увеличение/уменьшение цены"]
[null,"Срыв сроков поставки/ выполнения работ, услуг по вине заказчика"]
[null,"Срыв сроков поставки/ выполнения работ, услуг по вине поставщика/ подрядчика"]
[null,"Изменение затрат в соответствии с директивами Компании"]
[null,"Увеличение/ уменьшение численности пользователей/ абонентов"]
[null,"Длительные закупочные процедуры ЦЗК"]
[null,"Экономия/ рост по результатам закупочных процедур"]
[null,"Полный отказ от закупки"]